bitfinex/quotes_ETHUSD_20240719
["timestamp","ask_amount","ask_price","bid_price","bid_amount"]
[1721386974951,2.93332,3409.1,3408.5,2.32]
[1721386975176,2.93332,3409.1,3408.5,2.552]
[1721386977128,2.93317,3409.3,3408.5,2.552]
[1721386978250,2.93317,3409.3,3408.6,0.05866948]
[1721386978464,2.93317,3409.3,3408.5,2.61066948]
[1721386978967,2.933,3409.5,3408.5,2.61066948]
[1721386979127,2.933,3409.5,3408.9,2.3312]
[1721386979312,2.93283,3409.7,3408.9,2.3312]
[1721386979519,2.9329,3409.6,3408.9,2.3312]
[1721386983177,3.22664,3410.2,3408.9,2.3312]
[1721386983344,2.93282,3409.7,3409.1,2.3841]
[1721386984937,2.933,3409.5,3409.1,2.3841]
[1721386985273,2.93294,3409.6,3409.1,2.3841]
[1721386985831,2.93277,3409.8,3409.1,2.3841]
[1721386986036,2.93277,3409.8,3409.2,0.23841]
[1721386987589,2.93281,3409.7,3409.2,0.23841]
[1721386989057,2.9327,3409.9,3409.2,0.23841]
[1721386989753,2.93272,3409.8,3409.2,0.23841]
[1721386990700,2.93272,3409.8,3409.3,2.3311]
[1721386990858,2.93272,3409.8,3409.3,2.588051]
[1721386991466,2.93256,3410.0,3409.3,2.588051]
[1721386992630,3.2266,3410.2,3409.5,2.4293]
[1721386993256,0.2942,3410.2,3409.5,2.4293]
[1721386993809,0.2942,3410.2,3409.5,5.36227]
[1721386994009,0.2942,3410.2,3409.7,2.4293]
[1721386994209,0.2942,3410.5,3409.7,2.4293]
[1721386995112,2.93204,3410.6,3409.7,2.4293]
[1721386995696,2.93213,3410.5,3409.7,2.4293]
[1721386996285,2.93205,3410.6,3409.7,2.4293]
[1721386996486,2.2884,3411.1,3409.8,1.13939921]
[1721386996487,2.93212,3410.5,3409.8,1.13939921]
[1721386996659,2.93187,3410.8,3409.8,1.13939921]
[1721386996859,2.93209,3410.6,3409.8,1.13939921]
[1721386997059,2.93209,3410.6,3409.9,2.4874]
[1721386997288,2.93212,3410.5,3409.9,2.4874]
[1721386997520,2.9322,3410.4,3410.0,0.36267992]
[1721386998029,2.93236,3410.3,3410.0,0.36267992]
[1721386998995,2.93255,3410.0,3409.9,2.4874]
[1721386999333,2.93255,3410.0,3409.4,2.3577]
[1721386999748,2.93264,3409.9,3409.4,2.3577]
[1721387003530,2.9324,3410.2,3409.4,2.3577]
[1721387004113,2.93222,3410.4,3409.4,2.3577]
[1721387004318,2.93222,3410.4,3409.7,2.4615]
[1721387005464,2.93229,3410.3,3409.7,2.4615]
[1721387006138,2.93257,3410.0,3409.7,2.4615]
[1721387006956,2.93263,3409.9,3409.7,2.4615]
[1721387008149,2.93246,3410.1,3409.7,2.4615]
[1721387008345,2.93256,3410.0,3409.7,2.4615]
[1721387009579,2.93244,3410.2,3409.7,2.4615]
[1721387009729,2.93247,3410.1,3409.7,2.4615]
[1721387010578,2.93232,3410.3,3409.7,2.4615]
[1721387011869,2.93238,3410.2,3409.7,2.4615]
[1721387013277,2.93248,3410.1,3409.7,2.4615]
[1721387014798,2.88248,3410.1,3409.8,0.24615]
[1721387015001,2.93232,3410.3,3409.8,0.24615]
[1721387015202,2.93237,3410.2,3409.8,0.24615]
[1721387016287,2.93232,3410.3,3409.8,0.24615]
[1721387016288,2.93247,3410.1,3409.8,0.24615]
[1721387016657,2.93255,3410.0,3409.8,0.24615]
[1721387019505,2.93244,3410.2,3409.8,0.24615]
[1721387019688,2.93244,3410.2,3409.9,0.270765]
[1721387023834,5.8649,3410.2,3409.9,0.270765]
[1721387024006,2.93244,3410.2,3409.9,0.270765]
[1721387025153,2.93246,3410.1,3409.9,0.270765]
[1721387026273,2.93246,3410.1,3409.9,1.324765]
[1721387026615,2.93234,3410.3,3410.0,0.3786265]
[1721387026939,2.93238,3410.2,3410.0,0.3786265]
[1721387029419,5.86484,3410.2,3409.9,1.054]
[1721387030318,2.93238,3410.2,3409.9,1.054]
[1721387033478,4.16418863,3410.5,3410.2,2.3008]
[1721387033680,2.9322,3410.4,3410.2,2.3008]
[1721387036389,4.16421863,3410.4,3410.2,2.3008]
[1721387036942,4.16421863,3410.4,3410.1,1.054]
[1721387037142,4.16421863,3410.4,3409.5,2.3618]
[1721387037375,2.93232,3410.3,3409.9,1.054]
[1721387037574,4.16433863,3410.3,3409.9,1.054]
[1721387038257,4.16433863,3410.3,3410.0,2.3618]
[1721387038861,1.23201863,3410.3,3410.0,2.3618]
[1721387039073,1.23201863,3410.4,3410.0,2.3618]
[1721387039264,1.23201863,3410.4,3410.0,2.70338]
[1721387039647,1.23201863,3410.4,3410.1,1.054]
[1721387041598,4.16421863,3410.4,3410.1,1.054]
[1721387046919,2.93229,3410.3,3410.1,1.054]
[1721387049316,1.23201863,3410.4,3410.1,1.054]
[1721387049477,4.16419863,3410.5,3410.3,1.054]
[1721387049672,1.23201863,3410.4,3410.3,1.054]
[1721387049876,2.93232,3410.3,3410.0,2.3618]
[1721387050104,2.93232,3410.3,3410.0,3.4158]
[1721387050390,2.93241,3410.2,3410.0,1.054]
[1721387050797,2.93247,3410.1,3409.8,1.054]
[1721387050991,2.93285,3409.7,3409.3,7.94421026]
[1721387051211,2.93285,3409.7,3409.3,1.054]
[1721387051639,4.16464863,3409.9,3408.9,2.2694]
[1721387051640,1.23201863,3409.8,3408.9,2.2694]
[1721387051787,1.23201863,3409.8,3408.7,1.054]
[1721387051788,2.93333,3409.1,3408.7,1.054]
[1721387052130,2.93333,3409.1,3408.2,1.22842053]
[1721387052131,2.93356,3408.9,3408.2,2.88361026]
[1721387052422,2.93356,3408.9,3408.3,1.054]
[1721387052734,2.93355,3408.9,3408.4,0.33234]
[1721387053434,2.93364,3408.8,3408.4,0.33234]
[1721387053992,1.23201863,3409.1,3408.4,0.33234]
[1721387054181,2.93324,3409.2,3408.4,0.33234]
[1721387055401,1.23201863,3409.3,3408.2,2.2694]
[1721387055720,2.93355,3408.9,3408.2,2.2694]
[1721387056525,2.93332,3409.1,3408.2,2.2694]
[1721387056980,2.93342,3409.0,3408.2,2.2694]
[1721387057182,2.93342,3409.0,3408.3,0.520367]
[1721387058442,2.93364,3408.8,3408.3,0.520367]
[1721387058723,2.93364,3408.8,3407.9,3.0]
[1721387059291,2.93367,3408.7,3407.9,3.0]
[1721387059494,2.93342,3409.0,3408.0,2.93427]
[1721387059791,2.93324,3409.2,3408.2,2.3526]
[1721387059989,2.93333,3409.1,3408.2,2.3526]
[1721387060588,2.93282,3409.7,3408.7,2.3526]
[1721387060890,2.93282,3409.7,3408.7,5.28625]
[1721387061135,2.93272,3409.8,3408.8,2.93356]
[1721387061332,2.93272,3409.8,3408.9,0.781716]
[1721387062339,5.86516,3410.0,3409.0,4.9625]
[1721387062557,2.93255,3410.0,3409.0,4.9625]
[1721387063957,2.93264,3409.9,3409.0,4.9625]
[1721387064262,2.93255,3410.0,3409.1,0.8677696]
[1721387064473,2.93238,3410.2,3409.1,6.8010096]
[1721387064633,2.93223,3410.4,3409.4,2.531]
[1721387064830,2.93223,3410.4,3409.4,5.46406]
[1721387065025,2.93223,3410.4,3409.5,0.844556]
[1721387065455,2.93229,3410.3,3409.5,0.844556]
[1721387065851,2.93239,3410.2,3409.5,0.844556]
[1721387066163,2.93229,3410.3,3409.5,0.844556]
[1721387066759,2.93238,3410.2,3409.5,0.844556]
[1721387067085,2.93238,3410.2,3409.6,0.3844556]
[1721387068771,2.93248,3410.1,3409.6,0.3844556]
[1721387068931,2.93247,3410.1,3409.6,0.3844556]
[1721387069134,2.93247,3410.1,3409.2,2.9815]
[1721387070265,2.93247,3410.1,3409.2,5.91473]
[1721387072374,2.9326,3410.0,3409.2,2.4315]
[1721387072581,2.9326,3410.0,3409.2,5.4315]
[1721387072794,2.9326,3410.0,3409.3,1.17636696]
[1721387077163,2.93244,3410.2,3409.3,1.17636696]
[1721387077578,2.93231,3410.3,3409.3,1.17636696]
[1721387077579,2.93247,3410.1,3409.3,1.17636696]
[1721387078409,2.78876806,3410.1,3409.3,1.17636696]
[1721387080015,2.78876806,3410.1,3409.4,2.2969]
[1721387080319,2.78876806,3410.1,3409.9,1.054]
[1721387081645,2.78876806,3410.1,3409.7,1.054]
[1721387086186,2.78876806,3410.1,3409.9,1.054]
[1721387088940,2.78876806,3410.1,3409.7,1.054]
[1721387089529,2.4805,3410.4,3409.0,2.4541]
[1721387089530,2.93287,3409.7,3409.0,2.4541]
[1721387089730,2.93285,3409.7,3409.4,1.054]
[1721387090094,2.93285,3409.7,3409.6,1.054]
[1721387090534,2.93285,3409.7,3409.4,1.054]
[1721387091802,2.93285,3409.7,3409.6,1.054]
[1721387092533,2.93293,3409.6,3409.4,1.054]
[1721387092732,2.93263,3409.9,3409.2,1.054]
[1721387092944,2.3994,3410.2,3409.0,2.4541]
[1721387092945,2.93315,3409.3,3409.0,1.054]
[1721387094044,2.93309,3409.4,3409.2,1.054]
[1721387095872,2.93282,3409.7,3409.2,3.5437]
[1721387096173,2.9329,3409.6,3409.2,3.5437]
[1721387099725,2.93299,3409.5,3409.2,1.054]
[1721387100481,2.93313,3409.4,3409.2,1.054]
[1721387100683,2.93299,3409.5,3409.2,1.054]
[1721387100885,2.93302,3409.5,3409.0,1.054]
[1721387101354,2.93306,3409.4,3409.3,1.054]
[1721387101744,5.33207,3409.9,3408.4,2.408]
[1721387101941,2.2935,3409.2,3408.4,2.408]
[1721387102139,2.2935,3409.2,3408.5,1.054]
[1721387102140,2.93376,3408.6,3408.5,1.054]
[1721387102821,2.93384,3408.5,3408.1,2.408]
[1721387102949,2.93375,3408.6,3408.4,1.054]
[1721387107393,2.93384,3408.5,3408.4,1.054]
[1721387107627,2.93391,3408.5,3407.7,9.7455]
[1721387107916,2.93407,3408.3,3408.2,1.054]
[1721387108217,2.9294311,3408.3,3408.2,1.054]
[1721387109724,2.93391,3408.5,3408.2,1.054]
[1721387109925,2.93391,3408.5,3408.4,1.054]
[1721387111308,2.93391,3408.5,3407.7,9.7455]
[1721387111309,2.93396,3408.4,3408.2,1.054]
[1721387113727,2.93375,3408.6,3408.2,1.054]
[1721387113927,2.93375,3408.6,3408.4,1.054]
[1721387114796,2.93384,3408.5,3408.4,1.054]
[1721387118706,2.93384,3408.5,3408.2,1.054]
[1721387125039,2.93393,3408.4,3408.2,1.054]
[1721387125622,2.93401,3408.3,3408.0,1.054]
[1721387127832,2.93401,3408.3,3408.2,1.054]
[1721387128355,2.93401,3408.3,3407.7,2.4155]
[1721387128649,2.93411,3408.2,3408.0,1.054]
[1721387128957,3.98753,3408.9,3407.1,6.02997]
[1721387128958,2.93444,3407.8,3407.1,2.2739]
[1721387129151,2.93444,3407.8,3407.4,1.054]
[1721387130151,2.93453,3407.7,3407.1,2.2739]
[1721387130360,2.93453,3407.7,3407.3,1.054]
[1721387130650,2.93453,3407.7,3407.0,1.054]
[1721387130651,2.93477,3407.5,3407.0,1.054]
[1721387130858,2.93477,3407.5,3407.2,1.054]
[1721387131915,2.93479,3407.4,3407.2,1.054]
[1721387132862,2.93461,3407.6,3407.2,1.054]
[1721387133067,2.9347,3407.5,3406.8,2.3152]
[1721387133220,2.9347,3407.5,3407.4,1.054]
[1721387134154,2.93528,3406.9,3406.7,1.054]
[1721387134659,2.9353,3406.8,3406.7,1.054]
[1721387136166,2.9353,3406.8,3406.5,2.3152]
[1721387136381,2.9353,3406.8,3406.5,2.54672]
[1721387136925,2.9353,3406.8,3406.1,2.4739]
[1721387137159,4.63446,3407.8,3405.6,2.4739]
[1721387137160,2.93574,3406.3,3405.6,2.4739]
[1721387138574,2.93574,3406.3,3405.3,4.8185]
[1721387138575,2.93613,3405.9,3405.3,4.8185]
[1721387139201,2.93592,3406.1,3405.3,4.8185]
[1721387139507,2.93592,3406.1,3405.4,0.48185]
[1721387140081,2.93558,3406.5,3405.4,3.48185]
[1721387140267,2.93522,3406.9,3405.8,2.4464]
[1721387140467,2.93532,3406.8,3405.8,5.38256]
[1721387140706,3.0,3407.7,3406.1,2.535]
[1721387140707,2.93507,3407.1,3406.1,2.535]
[1721387140893,2.93507,3407.1,3406.2,2.993507]
[1721387141097,2.93513,3407.0,3406.2,2.993507]
[1721387142008,5.3996,3407.4,3406.2,5.929297]
[1721387142214,2.93505,3407.1,3406.2,5.929297]
[1721387142517,2.93505,3407.1,3406.2,2.993507]
[1721387142718,2.93505,3407.1,3406.3,0.8464487]
[1721387143807,2.93513,3407.0,3406.3,0.8464487]
[1721387144510,2.93505,3407.1,3406.3,0.8464487]
[1721387147077,2.93469,3407.6,3406.4,2.99427769]
[1721387147276,2.93469,3407.6,3406.6,5.36891]
[1721387147519,2.93469,3407.6,3406.6,5.42761096]
[1721387148411,2.93444,3407.8,3406.7,2.93538]
[1721387148926,2.93453,3407.7,3406.7,2.93538]
[1721387151923,2.93462,3407.6,3406.7,2.93538]
[1721387152124,2.93462,3407.6,3406.8,1.14681326]
[1721387153415,2.93432,3408.0,3407.0,5.36863]
[1721387153912,2.93435,3407.9,3407.0,5.36863]
[1721387154658,2.93427,3408.0,3407.1,2.93503]
[1721387154826,2.93427,3408.0,3407.2,0.790353]
[1721387155150,5.3858,3408.2,3407.2,0.790353]
[1721387155151,2.93396,3408.4,3407.3,7.80562]
[1721387155456,2.93401,3408.3,3407.3,7.80562]
[1721387155911,2.93411,3408.2,3407.3,4.8708]
[1721387156119,2.9342,3408.1,3407.3,4.8708]
[1721387156474,2.9342,3408.1,3407.4,0.8596123]
[1721387157915,5.21622,3408.7,3406.9,12.8002]
[1721387157916,2.93461,3407.6,3406.9,12.1264]
[1721387158148,2.93461,3407.6,3406.9,9.5914]
[1721387158462,2.93487,3407.3,3406.9,7.33]
[1721387158640,2.93487,3407.3,3406.8,1.14681326]
[1721387159314,2.93471,3407.5,3406.8,1.14681326]
[1721387159521,2.93471,3407.5,3406.9,0.64082133]
[1721387160227,2.2602,3408.0,3406.6,2.2614]
[1721387160412,2.93513,3407.0,3406.6,2.2614]
[1721387160616,2.93532,3406.8,3406.2,2.409]
[1721387161348,2.93539,3406.7,3406.2,2.409]
[1721387162046,2.93539,3406.7,3406.2,2.6499]
[1721387163760,2.93548,3406.6,3406.2,2.409]
[1721387163947,2.93556,3406.5,3405.9,2.2781]
[1721387164523,2.93539,3406.7,3405.9,2.2781]
[1721387164828,2.93549,3406.6,3405.9,2.2781]
[1721387165032,2.93539,3406.7,3405.9,2.2781]
[1721387165235,2.93539,3406.7,3406.0,0.48131]
[1721387167036,2.93524,3406.9,3406.0,0.48131]
[1721387167560,2.93531,3406.8,3406.0,0.48131]
[1721387167931,2.93513,3407.0,3406.0,0.48131]
[1721387168323,2.93513,3407.0,3406.1,2.535]
[1721387168553,2.93513,3407.0,3406.3,2.4458]
[1721387169232,2.93502,3407.2,3406.3,2.4458]
[1721387171657,2.93495,3407.3,3406.3,2.4458]
[1721387171862,2.93566,3406.4,3405.9,2.2528]
[1721387172064,2.93558,3406.5,3405.9,2.2528]
[1721387172219,2.93558,3406.5,3405.9,2.47808]
[1721387174922,2.93558,3406.5,3405.9,2.2528]
[1721387175967,1.23201863,3407.1,3405.9,2.2528]
[1721387176170,1.23201863,3407.2,3405.9,2.2528]
[1721387176375,2.93553,3406.6,3405.9,2.2528]
[1721387176667,2.93556,3406.5,3405.9,3.025213]
[1721387177627,2.93539,3406.7,3405.9,3.025213]
[1721387177826,2.93523,3406.9,3406.1,2.535]
[1721387178241,2.93532,3406.8,3406.1,2.535]
[1721387182246,2.93514,3407.0,3406.2,2.4951]
[1721387182574,2.93514,3407.0,3406.3,0.50301]
[1721387182944,2.93527,3406.9,3406.3,0.50301]
[1721387183144,5.40325,3407.6,3406.2,2.4951]
[1721387183145,2.9353,3406.8,3406.2,2.4951]
[1721387183359,2.93544,3406.7,3406.2,2.4951]
[1721387185471,2.93523,3406.9,3406.2,2.4951]
[1721387187572,2.93506,3407.1,3406.2,2.4951]
[1721387187770,2.93506,3407.1,3406.3,2.42170728]
[1721387187981,2.93506,3407.1,3406.4,0.78924673]
[1721387188185,2.93488,3407.3,3406.6,2.363]
[1721387188703,2.93471,3407.5,3406.6,2.363]
[1721387188859,2.93484,3407.4,3406.6,2.363]
[1721387189904,2.93456,3407.7,3406.7,2.93539]
[1721387190068,2.93456,3407.7,3406.9,2.535]
[1721387190764,2.93437,3407.9,3407.0,2.2543]
[1721387190961,3.67071863,3408.2,3407.0,2.2543]
[1721387190962,2.93444,3407.8,3407.0,2.2543]
[1721387191161,2.93462,3407.6,3407.0,2.2543]
[1721387191789,2.93444,3407.8,3407.0,2.2543]
[1721387192061,2.93444,3407.8,3407.1,0.5336339]
[1721387192261,2.93453,3407.7,3407.1,0.5336339]
[1721387193215,2.93436,3407.9,3407.1,0.5336339]
[1721387193596,2.93445,3407.8,3407.1,0.5336339]
[1721387196387,2.93445,3407.8,3407.2,2.3452]
[1721387196698,2.93445,3407.8,3407.3,0.28788339]
[1721387196892,2.93433,3408.0,3407.3,0.28788339]
[1721387197612,2.93436,3407.9,3407.3,0.28788339]
[1721387198322,2.93444,3407.8,3407.3,0.28788339]
[1721387198619,2.93444,3407.8,3407.2,2.3452]
[1721387200921,2.93433,3408.0,3407.2,2.3452]
[1721387202025,2.93435,3407.9,3407.2,2.3452]
[1721387206221,2.93444,3407.8,3407.2,2.3452]
[1721387209392,2.93453,3407.7,3407.2,2.3452]
[1721387216532,2.93445,3407.8,3407.2,2.3452]
[1721387216695,2.93445,3407.8,3407.3,0.23452]
[1721387217704,2.93445,3407.8,3407.4,2.3984]
[1721387218641,1.53505333,3408.6,3407.4,2.45708977]
[1721387218642,2.93425,3408.1,3407.4,2.45708977]
[1721387218830,2.9341,3408.2,3407.4,2.3984]
[1721387219031,2.9341,3408.2,3407.5,2.915192]
[1721387220331,2.93403,3408.3,3407.5,2.915192]
[1721387220552,2.93386,3408.5,3407.7,2.535]
[1721387220828,2.93386,3408.5,3407.8,2.2876]
[1721387224845,2.93393,3408.4,3407.8,2.2876]
[1721387226443,2.93393,3408.4,3407.8,3.8480072]
[1721387230256,2.93393,3408.4,3408.3,1.055]
[1721387230481,2.93393,3408.4,3407.8,2.2876]
[1721387230742,2.93401,3408.3,3408.0,1.055]
[1721387232156,2.93401,3408.3,3408.2,1.055]
[1721387234448,2.93441,3407.9,3407.8,1.055]
[1721387241874,2.93454,3407.7,3407.2,2.365]
[1721387242105,2.93462,3407.6,3407.5,1.055]
[1721387242397,3.765921,3407.6,3407.5,1.055]
[1721387242689,2.93462,3407.6,3407.5,1.055]
[1721387244493,1.23201863,3408.1,3407.5,1.055]
[1721387244703,2.93416,3408.2,3408.0,1.055]
[1721387246256,2.93416,3408.2,3407.8,2.3781]
[1721387251158,2.93399,3408.4,3407.8,2.3781]
[1721387251356,2.93402,3408.3,3407.8,2.3781]
[1721387258301,2.93402,3408.3,3407.9,0.49101]
[1721387261329,2.93402,3408.3,3407.8,2.3781]
[1721387262526,4.16603863,3408.3,3407.8,2.3781]
[1721387267752,2.9341,3408.2,3407.8,2.3781]
[1721387268249,2.9341,3408.2,3408.0,1.055]
[1721387271774,2.93418,3408.1,3408.0,1.055]
[1721387274176,5.8694,3407.5,3407.4,7.33]
[1721387274478,2.9347,3407.5,3407.1,1.055]
[1721387275777,2.93488,3407.3,3407.1,1.055]
[1721387276877,2.93496,3407.2,3407.1,1.055]
[1721387277643,2.93513,3407.0,3406.9,1.055]
[1721387278174,2.93513,3407.0,3406.8,7.33]
[1721387278381,2.93513,3407.0,3406.9,1.055]
[1721387280095,2.9351,3407.1,3406.9,1.055]
[1721387290691,2.93513,3407.0,3406.9,1.055]
[1721387295033,2.93524,3406.9,3406.7,2.4338]
[1721387295631,2.93537,3406.8,3406.6,1.055]
[1721387297133,2.93539,3406.7,3406.6,1.055]
[1721387303908,2.93548,3406.6,3406.3,2.3101]
[1721387304134,2.93548,3406.6,3406.3,3.59611]
[1721387304343,2.93548,3406.6,3406.3,3.3651]
[1721387305937,2.4555,3406.6,3405.8,2.3673]
[1721387306227,2.4555,3406.6,3406.0,1.055]
[1721387306424,2.93579,3406.3,3406.0,1.055]
[1721387309231,2.93579,3406.3,3406.2,1.055]
[1721387312324,2.93556,3406.5,3406.2,1.055]
[1721387312525,2.93527,3406.9,3406.4,1.055]
[1721387312744,2.93527,3406.9,3406.7,1.055]
[1721387315682,5.324,3406.8,3406.5,1.055]
[1721387316255,2.9353,3406.8,3406.5,1.055]
[1721387316786,2.93539,3406.7,3406.5,1.055]
[1721387319279,5.87055,3406.9,3406.5,1.055]
[1721387319487,2.93532,3406.8,3406.5,1.055]
[1721387321513,2.93541,3406.7,3406.3,1.055]
[1721387322211,2.93556,3406.5,3406.3,1.055]
[1721387323869,2.93565,3406.4,3406.3,1.055]
[1721387324095,2.93579,3406.3,3406.1,1.055]
[1721387330979,2.93582,3406.2,3406.1,1.055]
[1721387333444,2.93582,3406.2,3405.9,1.055]
[1721387334240,2.93582,3406.2,3405.7,7.33]
[1721387334241,2.93616,3405.8,3405.7,7.33]
[1721387335006,2.93616,3405.8,3405.6,1.055]
[1721387336711,4.16808983,3406.2,3405.6,1.055]
[1721387337043,2.93585,3406.2,3405.9,1.055]
[1721387337220,2.93566,3406.4,3406.1,1.055]
[1721387337400,1.23223983,3406.5,3405.8,2.4494]
[1721387337401,2.93562,3406.5,3406.3,1.055]
[1721387337604,2.93551,3406.6,3406.3,1.055]
[1721387338019,2.93565,3406.4,3406.3,1.055]
[1721387338738,2.93574,3406.3,3406.0,1.055]
[1721387338950,2.9355,3406.6,3406.0,1.055]
[1721387339252,2.9355,3406.6,3406.2,1.055]
[1721387339901,2.93565,3406.4,3406.2,1.055]
[1721387345222,0.51576264,3406.8,3406.3,2.3135]
[1721387345223,1.23223983,3406.8,3406.3,2.3135]
[1721387345549,4.16727983,3407.1,3406.7,1.055]
[1721387345719,4.16727983,3407.1,3406.9,1.055]
[1721387345720,2.93504,3407.1,3406.9,1.055]
[1721387345907,2.93513,3407.0,3406.7,1.055]
[1721387346419,2.93513,3407.0,3406.3,2.3135]
[1721387346420,2.93513,3407.0,3406.5,1.055]
[1721387348273,2.93513,3407.0,3406.7,1.055]
[1721387348434,4.16725983,3407.2,3406.7,1.055]
[1721387348636,2.93507,3407.1,3406.7,1.055]
[1721387348949,2.93515,3407.0,3406.7,1.055]
[1721387349419,2.93522,3406.9,3406.3,2.3135]
[1721387349611,2.93522,3406.9,3406.5,1.055]
[1721387351034,2.3579,3406.8,3406.3,1.055]
[1721387351219,2.93544,3406.7,3406.3,1.055]
[1721387351422,2.3579,3406.8,3406.0,7.33]
[1721387351423,2.93558,3406.5,3406.0,7.33]
[1721387351658,2.9357,3406.4,3405.9,1.055]
[1721387351822,2.93575,3406.3,3405.9,1.055]
[1721387352417,2.93582,3406.2,3405.9,1.055]
[1721387352617,2.93582,3406.2,3405.6,2.3783]
[1721387352829,2.93582,3406.2,3405.7,1.055]
[1721387353030,2.93582,3406.2,3405.9,1.055]
[1721387353235,2.936,3406.0,3405.9,1.055]
[1721387354126,2.9359,3406.1,3405.3,2.3783]
[1721387354127,2.93625,3405.8,3405.3,2.3783]
[1721387354328,2.93628,3405.7,3405.5,1.055]
[1721387354552,2.93628,3405.7,3405.6,1.055]
[1721387357757,2.93614,3405.9,3405.6,1.055]
[1721387358127,2.93614,3405.9,3405.8,1.055]
[1721387358837,2.93616,3405.8,3405.1,7.33]
[1721387359037,2.93616,3405.8,3405.7,1.055]
[1721387361551,2.93634,3405.6,3405.0,2.2552]
[1721387361724,2.93634,3405.6,3404.6,9.8175]
[1721387361924,2.93634,3405.6,3404.7,2.56949775]
[1721387362225,2.9366,3405.3,3404.9,1.055]
[1721387362565,2.9366,3405.3,3405.1,1.055]
[1721387363634,2.93642,3405.5,3405.1,1.055]
[1721387363866,2.93642,3405.5,3404.6,5.42464]
[1721387363867,2.93642,3405.5,3405.4,1.055]
[1721387364880,2.93651,3405.4,3404.6,2.4875]
[1721387365030,2.93651,3405.4,3405.3,1.055]
[1721387365660,2.93626,3405.7,3405.3,1.055]
[1721387365989,2.93626,3405.7,3405.5,1.055]
[1721387367369,2.93591,3406.1,3405.5,1.055]
[1721387367581,2.93579,3406.3,3405.9,1.055]
[1721387367725,2.93579,3406.3,3405.2,5.35706]
[1721387367726,2.93579,3406.3,3406.1,1.055]
[1721387367932,2.93548,3406.6,3406.1,1.055]
[1721387368131,1.23223983,3406.7,3406.3,1.055]
[1721387368396,1.23223983,3406.7,3406.1,1.055]
[1721387368397,2.93565,3406.4,3406.1,1.055]
[1721387372785,2.93565,3406.4,3405.9,2.4204]
[1721387372786,2.93582,3406.2,3405.9,1.055]
[1721387373065,2.93588,3406.2,3405.9,1.055]
[1721387377462,2.93588,3406.2,3406.1,1.055]
[1721387378583,2.93588,3406.2,3405.9,1.055]
[1721387379264,2.93588,3406.2,3406.1,1.055]
[1721387382057,2.9355,3406.6,3406.1,1.055]
[1721387382261,2.9355,3406.6,3406.3,1.055]
[1721387382262,2.93556,3406.5,3406.3,1.055]
[1721387382760,2.93556,3406.5,3406.1,1.055]
[1721387383557,2.93545,3406.7,3406.3,1.055]
[1721387384403,1.23223983,3406.9,3406.5,1.055]
[1721387384565,4.16739983,3407.0,3406.5,1.055]
[1721387384765,2.93541,3406.7,3406.5,1.055]
[1721387386457,2.93547,3406.6,3406.5,1.055]
[1721387386769,2.93547,3406.6,3406.3,1.055]
[1721387387653,2.93556,3406.5,3406.3,1.055]
[1721387388282,2.93547,3406.6,3406.3,1.055]
[1721387388695,2.93557,3406.5,3406.3,1.055]
[1721387392234,0.587096,3406.5,3405.7,2.363]
[1721387392547,2.93593,3406.1,3405.8,1.055]
[1721387392854,2.93593,3406.1,3405.7,2.363]
[1721387392855,2.93593,3406.1,3406.0,1.055]
[1721387398625,2.93604,3406.0,3405.7,2.363]
[1721387398922,2.93604,3406.0,3405.9,1.055]
[1721387400448,2.840602,3406.0,3405.5,1.055]
[1721387400655,2.840602,3406.0,3405.0,1.055]
[1721387400656,2.93665,3405.3,3405.0,1.055]
[1721387400864,2.93665,3405.3,3405.2,1.055]
[1721387403289,2.93643,3405.5,3405.2,1.055]
[1721387403535,2.93643,3405.5,3405.4,1.055]
[1721387407371,2.93628,3405.7,3405.4,1.055]
[1721387408247,2.93628,3405.7,3405.6,1.055]
[1721387409303,2.93628,3405.7,3405.4,1.055]
[1721387409449,2.93634,3405.6,3405.4,1.055]
[1721387411404,2.93642,3405.5,3405.4,1.055]
[1721387411698,2.93642,3405.5,3405.2,1.055]
[1721387412909,2.93661,3405.3,3405.1,1.055]
[1721387413517,2.93668,3405.2,3404.9,1.055]
[1721387415213,1.23223983,3405.8,3404.9,1.055]
[1721387415214,2.93641,3405.6,3405.1,1.055]
[1721387415423,2.93641,3405.6,3405.4,1.055]
[1721387415589,2.93642,3405.5,3405.4,1.055]
[1721387415792,5.87284,3405.5,3405.4,1.055]
[1721387417930,2.93626,3405.7,3405.4,1.055]
[1721387418139,2.93626,3405.7,3405.6,1.055]
[1721387418445,5.23306,3405.7,3405.6,1.055]
[1721387418655,5.2334,3405.3,3404.9,1.055]
[1721387419025,2.93669,3405.2,3404.9,1.055]
[1721387419635,2.93669,3405.2,3404.7,1.055]
[1721387419954,2.93692,3405.0,3404.7,1.055]
[1721387420106,4.16860983,3405.6,3404.0,9.8016]
[1721387420107,4.16869983,3405.5,3404.0,9.8016]
[1721387420306,2.9372,3404.7,3404.3,1.055]
[1721387421242,2.93737,3404.4,3404.3,1.055]
[1721387421647,2.93727,3404.6,3404.3,1.055]
[1721387421817,2.93727,3404.6,3404.0,2.4716]